fUST/lending_fUST_20240930
["ID","MTS","AMOUNT","RATE_DAILY","PERIOD"]
[339541480,1727686246037,-500.0,0.00014098,2]
[339541482,1727686246047,-500.0,0.00014098,2]
[339541484,1727686246056,-500.0,0.00014098,2]
[339541486,1727686246065,-1099.39,0.00014098,2]
[339541488,1727686246075,-517.48,0.00014098,2]
[339541490,1727686246085,-500.0,0.00014098,2]
[339541492,1727686246094,-500.0,0.00014098,2]
[339541494,1727686246103,-500.0,0.00014098,2]
[339541495,1727686246113,-500.0,0.00014098,2]
[339541497,1727686246122,-647.23,0.00014098,2]
[339541499,1727686246131,-500.0,0.00014098,2]
[339541501,1727686246141,-1167.08,0.00014098,2]
[339541503,1727686246150,-500.0,0.00014098,2]
[339541505,1727686246159,-500.0,0.00014098,2]
[339541507,1727686246169,-500.0,0.00014098,2]
[339541509,1727686246178,-500.0,0.00014098,2]
[339541511,1727686246187,-500.0,0.00014098,2]
[339541513,1727686246197,-546.16,0.00014098,2]
[339541515,1727686246206,-500.0,0.00014098,2]
[339541517,1727686246215,-874.98,0.00014098,2]
[339541519,1727686246224,-500.0,0.00014098,2]
[339541521,1727686246233,-500.0,0.00014098,2]
[339541523,1727686246243,-500.0,0.00014098,2]
[339541525,1727686246252,-500.0,0.00014098,2]
[339541527,1727686246262,-238.27607734,0.00014098,2]
[339541529,1727686246271,-500.0,0.00014098,2]
[339541531,1727686246280,-500.0,0.00014098,2]
[339541533,1727686246289,-500.0,0.00014098,2]
[339541535,1727686246299,-500.0,0.00014098,2]
[339541537,1727686246308,-169.44800571,0.00014098,2]
[339541539,1727686246317,-500.0,0.00014098,2]
[339541541,1727686246326,-500.0,0.00014098,2]
[339541542,1727686246335,-2268.01,0.00014098,2]
[339541544,1727686246345,-500.0,0.00014098,2]
[339541546,1727686246355,-500.0,0.00014098,2]
[339541548,1727686246364,-500.0,0.00014098,2]
[339541550,1727686246373,-500.0,0.00014098,2]
[339541552,1727686246383,-500.0,0.00014098,2]
[339541554,1727686246393,-1569.99,0.00014098,2]
[339541556,1727686246403,-1209.33,0.00014098,2]
[339541558,1727686246414,-500.0,0.00014098,2]
[339541560,1727686246423,-500.0,0.00014098,2]
[339541562,1727686246433,-500.0,0.00014098,2]
[339541564,1727686246442,-500.0,0.00014098,2]
[339541565,1727686246451,-500.0,0.00014098,2]
[339541567,1727686246460,-500.0,0.00014098,2]
[339541569,1727686246470,-500.0,0.00014098,2]
[339541571,1727686246479,-500.0,0.00014098,2]
[339541573,1727686246490,-500.0,0.00014098,2]
[339541575,1727686246499,-857.53,0.00014098,2]
[339541577,1727686246508,-1645.96,0.00014098,2]
[339541579,1727686246518,-500.0,0.00014098,2]
[339541581,1727686246529,-500.0,0.00014098,2]
[339541583,1727686246538,-2077.32,0.00014098,2]
[339541584,1727686246548,-500.0,0.00014098,2]
[339541586,1727686246558,-578.07,0.00014098,2]
[339541588,1727686246567,-426.6864073,0.00014098,2]
[339541590,1727686246577,-500.0,0.00014098,2]
[339541592,1727686246588,-500.0,0.00014098,2]
[339541594,1727686246597,-504.42089867,0.00014098,2]
[339541596,1727686246606,-500.0,0.00014098,2]
[339541598,1727686246616,-500.0,0.00014098,2]
[339541600,1727686246626,-500.0,0.00014098,2]
[339541602,1727686246636,-500.0,0.00014098,2]
[339541604,1727686246645,-518.26,0.00014098,2]
[339541606,1727686246655,-500.0,0.00014098,2]
[339541607,1727686246665,-500.0,0.00014098,2]
[339541608,1727686246675,-500.0,0.00014098,2]
[339541609,1727686246684,-500.0,0.00014098,2]
[339541610,1727686246694,-500.0,0.00014098,2]
[339541611,1727686246703,-500.0,0.00014098,2]
[339541612,1727686246712,-500.0,0.00014098,2]
[339541613,1727686246722,-500.0,0.00014098,2]
[339541614,1727686246731,-500.0,0.00014098,2]
[339541615,1727686246741,-500.0,0.00014098,2]
[339541616,1727686246750,-374.18736134,0.00014098,2]
[339541617,1727686246760,-500.0,0.00014098,2]
[339541618,1727686246769,-500.0,0.00014098,2]
[339541619,1727686246779,-500.0,0.00014098,2]
[339541620,1727686246788,-500.0,0.00014098,2]
[339541621,1727686246798,-500.0,0.00014098,2]
[339541622,1727686246807,-500.0,0.00014098,2]
[339541623,1727686246816,-500.0,0.00014098,2]
[339541624,1727686246825,-479.9996251,0.00014098,2]
[339541625,1727686246835,-428.22520136,0.00014098,2]
[339541626,1727686246844,-170.68819738,0.00014098,2]
[339541627,1727686246853,-500.0,0.00014098,2]
[339541628,1727686246862,-500.0,0.00014098,2]
[339541629,1727686246872,-500.0,0.00014098,2]
[339541630,1727686246885,-500.0,0.00014098,2]
[339541631,1727686246894,-500.0,0.00014098,2]
[339541632,1727686246903,-503.95,0.00014098,2]
[339541633,1727686246915,-500.0,0.00014098,2]
[339541634,1727686246924,-500.0,0.00014098,2]
[339541635,1727686246934,-666.53,0.00014098,2]
[339541636,1727686246943,-500.0,0.00014098,2]
[339541637,1727686246954,-500.0,0.00014098,2]
[339541638,1727686246965,-825.66,0.00014098,2]
[339541639,1727686246974,-366.73316821,0.00014098,2]
[339541640,1727686246984,-500.0,0.00014098,2]
[339541641,1727686246994,-500.0,0.00014098,2]
[339541642,1727686247003,-500.0,0.00014098,2]
[339541643,1727686247012,-500.0,0.00014098,2]
[339541644,1727686247022,-500.0,0.00014098,2]
[339541645,1727686247031,-500.0,0.00014098,2]
[339541646,1727686247040,-538.77,0.00014098,2]
[339541647,1727686247050,-500.0,0.00014098,2]
[339541648,1727686247060,-500.0,0.00014098,2]
[339541649,1727686247070,-500.0,0.00014098,2]
[339541650,1727686247080,-500.0,0.00014098,2]
[339541651,1727686247091,-575.6,0.00014098,2]
[339541652,1727686247106,-593.51017427,0.00014098,2]
[339541653,1727686247115,-500.0,0.00014098,2]
[339541654,1727686247124,-614.25,0.00014098,2]
[339541655,1727686247134,-645.82,0.00014098,2]
[339541656,1727686247143,-1409.54,0.00014098,2]
[339541657,1727686247152,-512.23701598,0.00014098,2]
[339541658,1727686247161,-500.0,0.00014098,2]
[339541659,1727686247170,-500.0,0.00014098,2]
[339541660,1727686247180,-500.0,0.00014098,2]
[339541661,1727686247189,-500.0,0.00014098,2]
[339541662,1727686247198,-500.0,0.00014098,2]
[339541663,1727686247208,-500.0,0.00014098,2]
[339541664,1727686247217,-500.0,0.00014098,2]
[339541665,1727686247226,-500.0,0.00014098,2]
[339541666,1727686247235,-500.0,0.00014098,2]
[339541667,1727686247245,-500.0,0.00014098,2]
[339541668,1727686247254,-17371.4347835,0.00014099,2]
[339541669,1727686247264,-486.4378664,0.00014099,2]
[339541670,1727686247273,-500.92319243,0.000141,2]
[339541671,1727686247283,-1000.0,0.000141,2]
[339541672,1727686247292,-1149.44755362,0.000141,2]
[339541673,1727686247302,-1000.0,0.000141,2]
[339541674,1727686247311,-1000.0,0.000141,2]
[339541675,1727686247320,-1000.0,0.000141,2]
[339541676,1727686247332,-1019.3136973,0.000141,2]
[339541677,1727686247341,-988.18091068,0.000141,2]
[339541678,1727686247351,-331.01890032,0.000141,2]
[339541679,1727686247361,-697.9503916,0.000141,2]
[339541680,1727686247370,-1000.0,0.000141,2]
[339541681,1727686247379,-1000.0,0.000141,2]
[339541682,1727686247389,-1000.0,0.000141,2]
[339541683,1727686247399,-1000.0,0.000141,2]
[339541684,1727686247409,-500.0,0.00014108,2]
[339541685,1727686247418,-500.0,0.00014108,2]
[339541686,1727686247427,-500.0,0.00014108,2]
[339541687,1727686247437,-500.0,0.00014108,2]
[339541688,1727686247447,-500.0,0.00014108,2]
[339541689,1727686247456,-500.0,0.00014108,2]
[339541690,1727686247466,-500.0,0.00014108,2]
[339541691,1727686247475,-500.0,0.00014108,2]
[339541692,1727686247485,-500.0,0.00014108,2]
[339541693,1727686247495,-500.0,0.00014108,2]
[339541694,1727686247504,-500.0,0.00014108,2]
[339541695,1727686247514,-500.0,0.00014108,2]
[339541696,1727686247524,-500.0,0.00014108,2]
[339541697,1727686247534,-575.0128302,0.00014108,2]
[339541698,1727686247544,-500.0,0.00014108,2]
[339541699,1727686247553,-500.0,0.00014108,2]
[339541700,1727686247563,-500.0,0.00014108,2]
[339541701,1727686247572,-500.0,0.00014108,2]
[339541702,1727686247583,-500.0,0.00014108,2]
[339541703,1727686247593,-500.0,0.00014108,2]
[339541704,1727686247603,-500.0,0.00014108,2]
[339541705,1727686247612,-500.0,0.00014108,2]
[339541706,1727686247622,-500.0,0.00014108,2]
[339541707,1727686247631,-500.0,0.00014108,2]
[339541708,1727686247641,-398.36798841,0.00014108,2]
[339541709,1727686247650,-500.0,0.00014108,2]
[339541710,1727686247660,-500.0,0.00014108,2]
[339541711,1727686247670,-500.0,0.00014108,2]
[339541712,1727686247679,-500.0,0.00014108,2]
[339541713,1727686247688,-500.0,0.00014108,2]
[339541714,1727686247698,-500.0,0.00014108,2]
[339541715,1727686247708,-500.0,0.00014108,2]
[339541716,1727686247717,-500.0,0.00014108,2]
[339541717,1727686247727,-341.48666955,0.00014108,2]
[339541718,1727686247737,-500.0,0.00014108,2]
[339541719,1727686247747,-500.0,0.00014108,2]
[339541720,1727686247757,-500.0,0.00014108,2]
[339541721,1727686247769,-500.0,0.00014108,2]
[339541722,1727686247778,-500.0,0.00014108,2]
[339541723,1727686247982,-500.0,0.00014108,2]
[339541724,1727686247991,-500.0,0.00014108,2]
[339541725,1727686248002,-504.55062437,0.00014108,2]
[339541726,1727686248013,-500.0,0.00014108,2]
[339541727,1727686248023,-602.08,0.00014109,2]
[339541728,1727686248032,-500.0,0.00014109,2]
[339541729,1727686248043,-500.0,0.00014109,2]
[339541730,1727686248053,-500.0,0.00014109,2]
[339541731,1727686248063,-500.0,0.00014109,2]
[339541732,1727686248074,-562.33731516,0.00014109,2]
[339541733,1727686248092,-1164.81,0.00014109,2]
[339541734,1727686248102,-500.0,0.00014109,2]
[339541735,1727686248112,-500.0,0.00014109,2]
[339541736,1727686248121,-500.0,0.00014109,2]
[339541737,1727686248131,-1657.49,0.00014109,2]
[339541738,1727686248141,-368.14011945,0.00014109,2]
[339541739,1727686248151,-510.79411968,0.00014109,2]
[339541740,1727686248161,-500.0,0.00014109,2]
[339541741,1727686248171,-500.0,0.00014109,2]
[339541742,1727686248180,-500.0,0.00014109,2]
[339541743,1727686248190,-500.0,0.00014109,2]
[339541744,1727686248200,-500.0,0.00014109,2]
[339541745,1727686248210,-500.0,0.00014109,2]
[339541746,1727686248220,-500.0,0.00014109,2]
[339541747,1727686248230,-503.18959144,0.00014109,2]
[339541748,1727686248240,-929.64,0.00014109,2]
[339541749,1727686248250,-537.15,0.00014109,2]
[339541750,1727686248259,-500.0,0.00014109,2]
[339541751,1727686248269,-511.78,0.00014109,2]
[339541752,1727686248278,-656.02,0.00014109,2]
[339541753,1727686248288,-500.0,0.00014109,2]
[339541754,1727686248297,-500.0,0.00014109,2]
[339541755,1727686248308,-270.25630527,0.00014109,2]
[339541756,1727686248318,-500.0,0.00014109,2]
[339541757,1727686248327,-500.0,0.00014109,2]
[339541758,1727686248337,-500.0,0.00014109,2]
[339541759,1727686248347,-500.0,0.00014109,2]
[339541760,1727686248357,-522.2,0.00014109,2]
[339541761,1727686248366,-500.0,0.00014109,2]
[339541762,1727686248376,-549.86512925,0.00014109,2]
[339541763,1727686248385,-500.0,0.00014109,2]
[339541764,1727686248395,-1564.18,0.00014109,2]
[339541765,1727686248405,-500.0,0.00014109,2]
[339541766,1727686248415,-2478.31,0.00014109,2]
[339541767,1727686248425,-500.0,0.00014109,2]
[339541768,1727686248435,-500.0,0.00014109,2]
[339541769,1727686248445,-767.564565,0.00014109,2]
[339541770,1727686248455,-151.0,0.00014109,2]
[339541771,1727686248464,-767.564565,0.00014109,2]
[339541772,1727686248474,-151.0,0.00014109,2]
[339541773,1727686248484,-941.735605,0.00014109,2]
[339541774,1727686248494,-941.735605,0.00014109,2]
[339541775,1727686248504,-151.0,0.00014109,2]
[339541776,1727686248514,-151.0,0.00014109,2]
[339541777,1727686248524,-151.0,0.00014109,2]
[339541778,1727686248534,-607.975521,0.00014109,2]
[339541779,1727686248544,-607.975521,0.00014109,2]
[339541780,1727686248553,-1694.621421,0.00014109,2]
[339541781,1727686248563,-1694.621421,0.00014109,2]
[339541782,1727686248573,-5032.225479,0.00014109,2]
[339541783,1727686248584,-5032.225479,0.00014109,2]
[339541784,1727686248593,-229.656971,0.00014109,2]
[339541785,1727686248603,-229.656971,0.00014109,2]
[339541786,1727686248613,-151.0,0.00014109,2]
[339541787,1727686248623,-421.673567,0.00014109,2]
[339541788,1727686248633,-421.673567,0.00014109,2]
[339541789,1727686248643,-151.0,0.00014109,2]
[339541790,1727686248653,-151.0,0.00014109,2]
[339541791,1727686248662,-151.0,0.00014127,2]
[339541792,1727686248673,-154.395563,0.00014127,2]
[339541793,1727686248683,-151.0,0.00014127,2]
[339541794,1727686248693,-151.0,0.00014127,2]
[339541795,1727686248703,-151.977213,0.00014127,2]
[339541796,1727686248712,-1500.0,0.00014127,2]
[339541797,1727686248722,-1500.0,0.00014127,2]
[339541798,1727686248732,-1085.20077211,0.00014127,2]
[339541799,1727686248742,-373.71241197,0.00014127,2]
[339541800,1727686248752,-1500.0,0.00014127,2]
[339541801,1727686248762,-1500.0,0.00014127,2]
[339541802,1727686248772,-1500.0,0.00014127,2]
[339541803,1727686248781,-600.05750043,0.00014127,2]
[339541804,1727686248792,-17371.4347835,0.00014146,2]
[339541805,1727686248802,-486.4378664,0.00014146,2]
[339541806,1727686248812,-2000.0,0.00014155,2]
[339541807,1727686248822,-2000.0,0.00014155,2]
[339541808,1727686248832,-1378.71936533,0.00014155,2]
[339541809,1727686248841,-2000.0,0.00014155,2]
[339541810,1727686248850,-2000.0,0.00014155,2]
[339541811,1727686248860,-151.0,0.00014172,2]
[339541812,1727686248869,-151.0,0.00014172,2]
[339541813,1727686248882,-151.0,0.00014172,2]
[339541814,1727686248891,-151.0,0.00014172,2]
[339541815,1727686248901,-769.25343,0.00014172,2]
[339541816,1727686248911,-769.25343,0.00014172,2]
[339541817,1727686248921,-1394.061828,0.00014172,2]
[339541818,1727686248931,-1394.061828,0.00014172,2]
[339541819,1727686248941,-151.0,0.00014172,2]
[339541820,1727686248951,-151.0,0.00014172,2]
[339541821,1727686248960,-403.053036,0.00014172,2]
[339541822,1727686248971,-403.053036,0.00014172,2]
[339541823,1727686248980,-151.0,0.00014172,2]
[339541824,1727686248990,-151.0,0.00014172,2]
[339541825,1727686249000,-151.0,0.00014172,2]
[339541826,1727686249009,-237.55917,0.00014172,2]
[339541827,1727686249019,-237.55917,0.00014172,2]
[339541828,1727686249028,-258.053911,0.00014172,2]
[339541829,1727686249038,-258.053911,0.00014172,2]
[339541830,1727686249048,-151.0,0.00014172,2]
[339541831,1727686249058,-157.833404,0.00014172,2]
[339541832,1727686249068,-238.831828,0.00014172,2]
[339541833,1727686249077,-238.831828,0.00014172,2]
[339541834,1727686249087,-2403.72797516,0.00014182,2]
[339541835,1727686249097,-705.11952795,0.00014182,2]
[339541836,1727686249107,-2500.0,0.00014182,2]
[339541837,1727686249116,-1566.71973835,0.00014182,2]
[339541838,1727686249125,-1644.05872861,0.0001421,2]
[339541839,1727686249135,-486.4378664,0.00014227,2]
[339541840,1727686249144,-150.112233,0.000143,2]
[339541841,1727686249153,-150.112233,0.000143,2]
[339541842,1727686249163,-150.112233,0.000143,2]
[339541843,1727686249172,-150.112237,0.000143,2]
[339541844,1727686249182,-1000.0,0.0001432,2]
[339541845,1727686249191,-1000.0,0.0001432,2]
[339541846,1727686249201,-1000.0,0.0001432,2]
[339541847,1727686249210,-1000.0,0.0001432,2]
[339541848,1727686249220,-1000.0,0.0001432,2]
[339541849,1727686249229,-1000.0,0.0001432,2]
[339541850,1727686249239,-1000.0,0.0001432,2]
[339541851,1727686249249,-1000.0,0.0001432,2]
[339541852,1727686249258,-1000.0,0.0001432,2]
[339541853,1727686249268,-1060.4162605,0.0001432,2]
[339541854,1727686249278,-486.4378664,0.00014341,2]
[339541855,1727686249288,-486.4378664,0.00014342,2]
[339541856,1727686249298,-151.0,0.00014344,2]
[339541857,1727686249308,-421.673567,0.00014344,2]
[339541858,1727686249318,-421.673567,0.00014344,2]
[339541859,1727686249328,-151.0,0.00014344,2]
[339541860,1727686249338,-151.0,0.00014344,2]
[339541861,1727686249348,-972.8757328,0.0001435,2]
[339541862,1727686249358,-486.4378664,0.00014351,2]
[339541863,1727686249369,-486.4378664,0.00014352,2]
[339541864,1727686249379,-767.564565,0.00014352,2]
[339541865,1727686249388,-151.0,0.00014352,2]
[339541866,1727686249398,-767.564565,0.00014352,2]
[339541867,1727686249409,-151.0,0.00014352,2]
[339541868,1727686249419,-941.735605,0.00014352,2]
[339541869,1727686249428,-941.735605,0.00014352,2]
[339541870,1727686249439,-151.0,0.00014352,2]
[339541871,1727686249449,-191.612687,0.00014352,2]
[339541872,1727686249460,-151.0,0.00014352,2]
[339541873,1727686249470,-607.975521,0.00014352,2]
[339541874,1727686249479,-151.0,0.00014352,2]
[339541875,1727686249489,-607.975521,0.00014352,2]
[339541876,1727686249499,-1694.621421,0.00014352,2]
[339541877,1727686249508,-151.0,0.00014352,2]
[339541878,1727686249518,-1694.621421,0.00014352,2]
[339541879,1727686249527,-5032.225479,0.00014352,2]
[339541880,1727686249537,-5032.225479,0.00014352,2]
[339541881,1727686249546,-229.656971,0.00014352,2]
[339541882,1727686249556,-229.656971,0.00014352,2]
[339541883,1727686249567,-1249.27,0.00014359,2]
[339541884,1727686249576,-500.0,0.00014359,2]
[339541885,1727686249587,-500.0,0.00014359,2]
[339541886,1727686249596,-500.84,0.00014359,2]
[339541887,1727686249605,-500.0,0.00014359,2]
[339541888,1727686249615,-500.0,0.00014359,2]
[339541889,1727686249624,-500.0,0.00014359,2]
[339541890,1727686249633,-500.0,0.00014359,2]
[339541891,1727686249642,-500.0,0.00014359,2]
[339541892,1727686249651,-1044.46,0.00014359,2]
[339541893,1727686249661,-860.43,0.00014359,2]
[339541894,1727686249670,-2882.92,0.00014359,2]
[339541895,1727686249679,-565.50882307,0.00014359,2]
[339541896,1727686249688,-500.0,0.00014359,2]
[339541897,1727686249698,-1595.35,0.00014359,2]
[339541898,1727686249707,-500.0,0.00014359,2]
[339541899,1727686249717,-828.11,0.00014359,2]
[339541900,1727686249726,-500.0,0.0001436,2]
[339541901,1727686249735,-663.7,0.0001436,2]
[339541902,1727686249745,-500.0,0.0001436,2]
[339541903,1727686249755,-500.0,0.0001436,2]
[339541904,1727686249764,-514.84426688,0.0001436,2]
[339541905,1727686249775,-500.0,0.0001436,2]
[339541906,1727686249786,-517.60876627,0.0001436,2]
[339541907,1727686249795,-500.0,0.0001436,2]
[339541908,1727686249805,-500.0,0.0001436,2]
[339541909,1727686249813,-500.0,0.0001436,2]
[339541910,1727686249823,-500.0,0.0001436,2]
[339541911,1727686249833,-500.0,0.0001436,2]
[339541912,1727686249842,-711.92,0.0001436,2]
[339541913,1727686249852,-500.0,0.0001436,2]
[339541914,1727686249861,-500.0,0.0001436,2]
[339541915,1727686249871,-500.0,0.0001436,2]
[339541916,1727686249885,-1081.78,0.0001436,2]
[339541917,1727686249894,-602.58345608,0.0001436,2]
[339541918,1727686249903,-500.0,0.0001436,2]
[339541919,1727686249913,-500.0,0.0001436,2]
[339541920,1727686249923,-500.0,0.0001436,2]
[339541921,1727686249933,-500.0,0.0001436,2]
[339541922,1727686249942,-927.15,0.0001436,2]
[339541923,1727686249954,-500.0,0.0001436,2]
[339541924,1727686249963,-500.0,0.0001436,2]
[339541925,1727686249973,-22233.12,0.0001436,2]
[339541926,1727686249983,-500.0,0.0001436,2]
[339541927,1727686249992,-500.0,0.0001436,2]
[339541928,1727686250001,-500.0,0.0001436,2]
[339541929,1727686250010,-500.0,0.0001436,2]
[339541930,1727686250020,-500.0,0.0001436,2]
[339541931,1727686250029,-3424.44,0.0001436,2]
[339541932,1727686250038,-500.0,0.0001436,2]
[339541933,1727686250048,-500.0,0.0001436,2]
[339541934,1727686250057,-500.0,0.0001436,2]
[339541935,1727686250066,-500.0,0.0001436,2]
[339541936,1727686250075,-736.81,0.0001436,2]
[339541937,1727686250085,-730.98,0.0001436,2]
[339541938,1727686250095,-288.99138709,0.0001436,2]
[339541939,1727686250104,-500.0,0.0001436,2]
[339541940,1727686250113,-558.73,0.0001436,2]
[339541941,1727686250124,-500.0,0.0001436,2]
[339541942,1727686250134,-500.0,0.0001436,2]
[339541943,1727686250143,-500.0,0.0001436,2]
[339541944,1727686250153,-530.69651116,0.0001436,2]
[339541945,1727686250163,-500.0,0.0001436,2]
[339541946,1727686250173,-239.3296795,0.0001436,2]
[339541947,1727686250182,-500.0,0.0001436,2]
[339541948,1727686250192,-500.0,0.0001436,2]
[339541949,1727686250201,-759.96,0.0001436,2]
[339541950,1727686250211,-500.0,0.0001436,2]
[339541951,1727686250220,-500.0,0.0001436,2]
[339541952,1727686250230,-500.0,0.0001436,2]
[339541953,1727686250240,-500.0,0.0001436,2]
[339541954,1727686250249,-500.0,0.0001436,2]
[339541955,1727686250259,-500.0,0.0001436,2]
[339541956,1727686250269,-525.48,0.0001436,2]
[339541957,1727686250279,-500.0,0.0001436,2]
[339541958,1727686250290,-500.0,0.0001436,2]
[339541959,1727686250299,-500.0,0.0001436,2]
[339541960,1727686250309,-500.0,0.0001436,2]
[339541961,1727686250319,-500.0,0.0001436,2]
[339541962,1727686250328,-500.0,0.0001436,2]
[339541963,1727686250338,-552.28,0.0001436,2]
[339541964,1727686250406,-500.0,0.0001436,2]
[339541965,1727686250416,-500.0,0.0001436,2]
[339541966,1727686250425,-500.0,0.0001436,2]
[339541967,1727686250435,-500.0,0.0001436,2]
[339541968,1727686250444,-151.0,0.0001436,2]
[339541969,1727686250453,-500.0,0.0001436,2]
[339541970,1727686250463,-500.0,0.0001436,2]
[339541971,1727686250475,-534.81,0.0001436,2]
[339541972,1727686250484,-500.0,0.0001436,2]
[339541973,1727686250493,-500.0,0.0001436,2]
[339541974,1727686250503,-796.77,0.0001436,2]
[339541975,1727686250513,-500.0,0.0001436,2]
[339541976,1727686250522,-500.0,0.0001436,2]
[339541977,1727686250531,-500.0,0.0001436,2]
[339541978,1727686250541,-980.2,0.0001436,2]
[339541979,1727686250550,-421.673567,0.0001436,2]
[339541980,1727686250559,-500.0,0.0001436,2]
[339541981,1727686250568,-500.0,0.0001436,2]
[339541982,1727686250577,-500.0,0.0001436,2]
[339541983,1727686250587,-500.0,0.0001436,2]
[339541984,1727686250596,-421.673567,0.0001436,2]
[339541985,1727686250605,-151.0,0.0001436,2]
[339541986,1727686250614,-500.0,0.0001436,2]
[339541987,1727686250624,-500.0,0.0001436,2]
[339541988,1727686250633,-162.430967,0.0001436,2]
[339541989,1727686250642,-326.17756451,0.0001436,2]
[339541990,1727686250652,-500.0,0.0001436,2]
[339541991,1727686250661,-500.0,0.0001436,2]
[339541992,1727686250670,-500.0,0.0001436,2]
[339541993,1727686250679,-501.3,0.0001436,2]
[339541994,1727686250689,-500.0,0.0001436,2]
[339541995,1727686250698,-1438.84,0.0001436,2]
[339541996,1727686250708,-500.0,0.0001436,2]
[339541997,1727686250717,-500.0,0.0001436,2]
[339541998,1727686250727,-500.0,0.0001436,2]
[339541999,1727686250736,-500.0,0.0001436,2]
[339542000,1727686250745,-500.0,0.0001436,2]
[339542001,1727686250754,-238.831828,0.0001436,2]
[339542002,1727686250764,-500.0,0.0001436,2]
[339542003,1727686250773,-238.831828,0.0001436,2]
[339542004,1727686250783,-500.0,0.0001436,2]
[339542005,1727686250793,-500.0,0.0001436,2]
[339542006,1727686250802,-23151.58183016,0.00014361,2]
[339542007,1727686250812,-500.0,0.00014361,2]
[339542008,1727686250821,-500.0,0.00014361,2]
[339542009,1727686250831,-500.0,0.00014361,2]
[339542010,1727686250840,-500.0,0.00014361,2]
[339542011,1727686250849,-500.0,0.00014361,2]
[339542012,1727686250859,-500.0,0.00014361,2]
[339542013,1727686250869,-381.61776949,0.00014361,2]
[339542014,1727686250881,-500.0,0.00014361,2]
[339542015,1727686250890,-500.0,0.00014361,2]
[339542016,1727686250899,-758.97,0.00014361,2]
[339542017,1727686250908,-513.22,0.00014361,2]
[339542018,1727686250918,-586.18,0.00014361,2]
[339542019,1727686250928,-500.0,0.00014361,2]
[339542020,1727686250937,-554.91,0.00014361,2]
[339542021,1727686250947,-500.0,0.00014361,2]
[339542022,1727686250956,-500.0,0.00014361,2]
[339542023,1727686250966,-933.0,0.00014361,2]
[339542024,1727686250976,-2381.03,0.00014361,2]
[339542025,1727686250986,-574.8785576,0.00014361,2]
[339542026,1727686250995,-500.0,0.00014361,2]
[339542027,1727686251005,-500.0,0.00014361,2]
[339542028,1727686251014,-500.0,0.00014361,2]
[339542029,1727686251025,-500.0,0.00014361,2]
[339542030,1727686251034,-500.0,0.00014361,2]
[339542031,1727686251044,-902.44,0.00014361,2]
[339542032,1727686251053,-500.0,0.00014361,2]
[339542033,1727686251063,-500.0,0.00014361,2]
[339542034,1727686251073,-500.0,0.00014361,2]
[339542035,1727686251084,-500.0,0.00014361,2]
[339542036,1727686251093,-500.0,0.00014361,2]
[339542037,1727686251103,-151.0,0.00014361,2]
[339542038,1727686251113,-500.0,0.00014361,2]
[339542039,1727686251122,-151.0,0.00014361,2]
[339542040,1727686251131,-500.0,0.00014361,2]